bitfinex-derivatives/quotes_ETHF0:USTF0_20220108
["timestamp","ask_amount","ask_price","bid_price","bid_amount"]
[1641600306187,2.00479,3191.7,3191.5,0.01564659]
[1641600306487,2.00479,3191.7,3191.6,5.013159]
[1641600306889,2.03650429,3191.7,3191.6,5.013159]
[1641600307589,2.30129229,3191.7,3191.6,5.013159]
[1641600307789,2.30129229,3191.7,3191.5,0.01564659]
[1641600307988,2.30129229,3191.7,3191.1,1.85035863]
[1641600308190,0.03171429,3191.4,3190.9,2.00479]
[1641600308393,0.03171429,3191.5,3191.2,5.013473]
[1641600308790,2.269578,3191.7,3191.0,5.01363]
[1641600308991,2.30129229,3191.7,3191.3,5.02920143]
[1641600309190,2.269578,3191.7,3191.3,1.369609]
[1641600309391,2.30129229,3191.7,3191.0,5.013552]
[1641600309592,2.269578,3191.7,3190.9,7.37879]
[1641600309793,0.03171429,3191.2,3190.9,7.37879]
[1641600309990,0.03171429,3191.2,3191.0,5.01363]
[1641600310193,0.264788,3191.6,3191.3,0.01564943]
[1641600311094,0.264788,3191.6,3190.9,2.0773576]
[1641600311305,0.264788,3191.6,3190.9,5.374]
[1641600311494,2.269578,3191.6,3190.9,7.37879]
[1641600311794,2.269578,3191.6,3190.9,5.28216537]
[1641600311994,2.269578,3191.6,3191.4,0.01564889]
[1641600312896,3.769578,3191.6,3191.0,0.0156508]
[1641600313096,1.5,3191.4,3190.8,5.374]
[1641600313397,4.00958,3190.9,3190.8,5.374]
[1641600313595,5.454167,3190.9,3190.8,5.374]
[1641600313796,5.454167,3190.9,3190.5,1.62481899]
[1641600313995,5.47356056,3190.9,3190.5,1.62481899]
[1641600314195,5.454167,3190.9,3190.5,1.62481899]
[1641600314396,5.718955,3190.9,3190.5,1.62481899]
[1641600316795,5.718955,3190.9,3189.7,4.45358789]
[1641600316996,1.5,3190.7,3189.7,0.4694]
[1641600317395,1.5,3190.5,3189.7,0.4694]
[1641600317597,1.5,3190.5,3189.6,5.374]
[1641600317598,4.00958,3189.8,3189.6,1.39848211]
[1641600317802,0.640787,3189.7,3188.6,9.14979]
[1641600318195,0.264788,3189.6,3189.0,5.016696]
[1641600318396,0.264788,3189.6,3189.0,8.146696]
[1641600318796,0.264788,3189.6,3189.1,0.14159315]
[1641600318997,0.264788,3189.6,3189.0,2.95324659]
[1641600319300,0.062588,3189.6,3189.2,5.016696]
[1641600319496,2.00479,3189.3,3188.9,0.5046]
[1641600320098,1.11003534,3188.6,3188.1,0.4659]
[1641600320300,1.67903534,3188.6,3188.2,0.2802]
[1641600320497,2.00479,3189.3,3188.2,0.2802]
[1641600320697,2.00479,3189.3,3188.3,5.01819]
[1641600321597,2.00479,3188.5,3188.3,5.01819]
[1641600321798,2.76459,3188.5,3188.4,0.264788]
[1641600321997,2.00479,3189.3,3188.4,0.264788]
[1641600322199,2.00479,3189.3,3188.4,5.2829]
[1641600322397,5.8015422,3188.9,3188.4,5.2829]
[1641600322598,5.8015422,3188.9,3188.8,0.0156608]
[1641600322599,6.6308422,3188.9,3188.8,0.0156608]
[1641600322799,6.6308422,3188.9,3188.4,5.2829]
[1641600322800,6.6308422,3188.9,3188.7,0.264788]
[1641600322998,6.6308422,3188.9,3188.8,5.017482]
[1641600323198,6.4358422,3188.9,3188.8,0.0156608]
[1641600323599,8.0726322,3188.9,3188.8,5.0331428]
[1641600323801,2.83409,3188.9,3188.8,5.0331428]
[1641600324000,2.00479,3188.9,3188.8,5.0331428]
[1641600324200,1.79478999,3188.9,3188.8,0.58605901]
[1641600324500,1.62278999,3188.9,3188.8,0.58605901]
[1641600324900,1.62278999,3188.9,3187.8,3.19507757]
[1641600325100,1.62278999,3188.9,3188.8,0.01566158]
[1641600325403,1.88757799,3188.9,3188.5,5.017797]
[1641600325603,1.88757799,3188.9,3187.9,5.018269]
[1641600325800,1.88757799,3188.9,3188.2,0.01566458]
[1641600326000,3.38757799,3188.9,3187.0,1.49999999]
[1641600326199,3.38757799,3188.9,3187.7,6.47290252]
[1641600326401,3.38757799,3188.9,3187.7,0.4779]
[1641600326600,3.38757799,3188.9,3187.8,5.018348]
[1641600326801,1.5,3188.7,3187.8,5.018348]
[1641600327003,1.62278999,3188.9,3187.8,5.018348]
[1641600327202,0.6269,3188.7,3187.8,5.018348]
[1641600327400,0.6269,3188.7,3186.5,5.374]
[1641600327401,0.6269,3188.3,3187.1,0.04667008]
[1641600327602,2.00479,3187.2,3187.1,0.52457008]
[1641600327806,3.320677,3187.2,3187.1,1.39767007]
[1641600328005,3.320677,3187.2,3187.1,0.52457008]
[1641600329604,3.585465,3187.2,3187.1,0.52457008]
[1641600330909,3.585465,3187.2,3186.8,0.01567008]
[1641600330910,7.77809518,3187.2,3186.8,0.01567008]
[1641600331109,5.57660818,3187.2,3186.6,2.72878654]
[1641600331311,1.97660818,3187.2,3186.6,2.72878654]
[1641600331509,2.00479,3187.9,3187.1,2.00479]
[1641600331710,3.9521657,3187.2,3187.1,2.00479]
[1641600331907,0.8121657,3187.2,3186.7,2.5051033]
[1641600332108,2.00479,3187.9,3187.1,5.020159]
[1641600332306,2.00479,3187.9,3187.2,3.13]
[1641600332507,0.905575,3187.8,3187.2,3.13]
[1641600332707,1.690375,3187.8,3187.4,0.01566846]
[1641600333106,1.690375,3187.8,3187.5,5.01945]
[1641600333607,1.690375,3187.8,3186.4,2.00479]
[1641600333608,3.50479,3187.6,3186.4,2.00479]
[1641600333807,2.00479,3187.6,3186.4,2.00479]
[1641600334008,2.00479,3187.6,3186.6,0.01567268]
[1641600335609,2.00479,3187.2,3186.6,0.01567268]
[1641600335812,0.264788,3187.1,3186.6,0.01567268]
[1641600336010,0.640787,3187.0,3186.6,0.01567268]
[1641600336211,0.264788,3186.9,3186.6,0.01567268]
[1641600336809,0.264788,3186.9,3186.4,2.00479]
[1641600336810,0.264788,3186.9,3186.4,0.71490321]
[1641600337611,0.264788,3186.9,3186.2,2.27601888]
[1641600338111,0.264788,3186.9,3186.5,0.01567307]
[1641600340515,0.264788,3186.9,3186.6,5.020867]
[1641600341721,0.450575,3187.0,3186.6,5.020867]
[1641600342019,0.382163,3187.0,3186.6,5.020867]
[1641600342219,0.382163,3187.0,3186.6,3.50738221]
[1641600342619,0.382163,3187.0,3186.5,0.28046107]
[1641600342820,1.254463,3187.0,3186.9,9.03694839]
[1641600343320,1.254463,3187.0,3186.9,5.47713134]
[1641600343622,1.254463,3187.0,3186.5,0.28046107]
[1641600343820,1.254463,3187.0,3186.5,0.01567307]
[1641600344221,2.754463,3187.0,3186.2,0.27122888]
[1641600344420,2.754463,3187.0,3185.7,8.22052147]
[1641600344421,2.28002834,3185.8,3185.7,6.93377693]
[1641600344620,0.6084,3185.8,3185.7,6.93377693]
[1641600344823,1.249187,3185.8,3185.7,6.93377693]
[1641600345525,1.249187,3185.8,3185.7,7.40967693]
[1641600346127,0.6084,3185.8,3185.7,7.67446493]
[1641600346322,1.53279,3185.9,3185.7,7.67446493]
[1641600346523,1.53279,3185.9,3185.7,12.69682993]
[1641600346722,1.53279,3185.9,3185.7,12.71250629]
[1641600346923,1.53279,3185.9,3185.7,13.91094428]
[1641600347525,0.506377,3186.1,3185.7,13.91094428]
[1641600348026,2.00479,3186.2,3185.8,3.13]
[1641600348525,2.00479,3186.2,3185.9,5.021971]
[1641600348924,2.269578,3186.2,3185.9,12.27553327]
[1641600349127,0.623753,3186.1,3185.9,12.27553327]
[1641600349325,0.510053,3186.1,3185.9,12.27553327]
[1641600349727,0.510053,3186.1,3185.9,12.54032127]
[1641600350328,0.510053,3186.1,3185.9,7.25356227]
[1641600350527,1.345553,3186.1,3185.9,7.25356227]
[1641600350826,0.264788,3186.0,3185.9,7.25356227]
[1641600351231,1.345553,3186.1,3185.9,7.82514598]
[1641600351529,0.094053,3186.1,3185.9,5.022049]
[1641600351828,1.902931,3186.2,3185.9,5.022049]
[1641600352029,1.902931,3186.2,3185.9,1.46166597]
[1641600352430,1.902931,3186.2,3185.8,3.13]
[1641600354833,1.5,3185.9,3185.7,0.4759]
[1641600355034,0.264788,3185.8,3185.7,0.4759]
[1641600355532,0.264788,3185.8,3185.7,0.0001]
[1641600355733,2.269578,3185.8,3185.7,0.0001]
[1641600356134,2.269578,3185.8,3185.2,0.01567907]
[1641600356633,2.269578,3185.8,3185.3,0.5003]
[1641600357735,2.00479,3185.4,3185.3,0.5003]
[1641600357934,2.269578,3185.4,3184.4,33.78627426]
[1641600358138,2.269578,3185.4,3184.2,1.68798011]
[1641600358536,2.269578,3185.4,3184.4,5.023784]
[1641600358937,2.269578,3185.4,3184.9,0.01568079]
[1641600359237,2.269578,3185.4,3185.0,1.5531093]
[1641600359435,2.269578,3185.4,3184.4,3.13]
[1641600359636,2.00479,3185.0,3184.4,3.13]
[1641600359835,2.85239,3185.0,3184.4,3.394788]
[1641600360035,2.85239,3185.0,3184.5,5.024021]
[1641600360237,2.64109,3185.0,3184.9,0.01568084]
[1641600360635,2.38239,3185.0,3184.9,5.03930684]
[1641600360836,2.00479,3185.4,3184.9,5.30409484]
[1641600361036,1.85459365,3186.2,3185.3,0.01567666]
[1641600361236,1.85459365,3186.2,3185.0,0.01567666]
[1641600361237,1.85459365,3186.2,3185.4,0.85215494]
[1641600361437,1.85459365,3186.2,3185.5,0.264788]
[1641600361637,1.85459365,3186.2,3185.4,2.85694494]
[1641600361638,1.5,3185.7,3185.4,2.85694494]
[1641600361836,1.5,3185.7,3185.6,5.022207]
[1641600362035,1.764788,3185.7,3185.4,5.98694494]
[1641600362235,1.5,3185.5,3185.4,5.98694494]
[1641600362635,1.764788,3185.5,3185.4,11.00978294]
[1641600363436,1.764788,3185.5,3185.4,7.46864175]
[1641600363838,1.764788,3185.5,3185.4,5.022838]
[1641600364241,1.764788,3185.5,3185.2,0.57078783]
[1641600364439,1.764788,3185.5,3185.4,5.022838]
[1641600364841,1.764788,3185.5,3185.1,0.01567956]
[1641600365039,0.072388,3185.5,3185.3,1.46443231]
[1641600365239,1.995978,3185.7,3185.3,1.46443231]
[1641600365639,1.5,3185.4,3185.3,1.46443231]
[1641600366139,1.5,3185.4,3185.1,0.01567956]
[1641600366340,2.00479,3185.5,3185.1,0.01567956]
[1641600366743,35.4946,3186.7,3185.3,0.0156789]
[1641600366744,3.26138844,3186.0,3185.3,0.0156789]
[1641600366941,3.26138844,3186.0,3185.2,5.023074]
[1641600367241,3.26138844,3186.0,3185.4,5.021971]
[1641600367441,3.26138844,3186.0,3185.3,0.28046653]
[1641600367643,5.26617844,3185.9,3185.4,5.022444]
[1641600368644,2.60886149,3185.6,3185.3,1.43255236]
[1641600369546,2.60886149,3185.6,3185.4,0.264788]
[1641600369744,2.60886149,3185.6,3185.4,5.022838]
[1641600370146,2.60886149,3185.6,3185.3,0.65646553]
[1641600370546,1.43855149,3185.9,3185.5,0.01567722]
[1641600370747,3.60309428,3186.0,3185.5,0.6193]
[1641600371547,3.60309428,3186.2,3185.5,0.6193]
[1641600371749,2.00479,3186.0,3185.8,0.01567622]
[1641600372147,2.00479,3186.0,3185.9,1.08621144]
[1641600372548,5.60788428,3186.0,3185.9,1.08621144]
[1641600372749,3.12519428,3186.0,3185.9,1.86988579]
[1641600372946,3.94298511,3186.5,3185.9,1.86988579]
[1641600373146,3.94298511,3186.5,3185.9,6.89193479]
[1641600373347,3.94298511,3186.5,3186.0,3.13]
[1641600373748,3.94298511,3186.5,3186.4,2.00479]
[1641600373948,3.76587129,3186.9,3186.1,5.81709748]
[1641600374150,0.88936477,3186.9,3186.4,5.021261]
[1641600374349,1.30040003,3187.2,3186.2,6.14445727]
[1641600374547,1.30040003,3187.2,3186.3,5.020946]
[1641600374752,1.30040003,3187.2,3186.5,5.020946]
[1641600375047,1.30040003,3187.2,3186.5,3.13]
[1641600375449,1.67710307,3187.5,3186.6,5.020631]
[1641600375647,1.67710307,3187.5,3186.6,5.635931]
[1641600375848,1.67710307,3187.5,3187.0,2.02046017]
[1641600376048,4.92459687,3187.8,3187.3,0.01566904]
[1641600376248,4.99779687,3187.8,3187.3,0.5814]
[1641600376448,0.8872,3187.8,3187.6,0.01566713]
[1641600376649,6.44719434,3188.0,3187.6,0.01566713]
[1641600376850,6.44719434,3188.0,3187.7,5.019292]
[1641600377250,5.10299434,3188.0,3187.7,6.45024572]
[1641600377748,5.10299434,3188.0,3187.7,8.45503572]
[1641600377950,4.56534851,3188.4,3187.9,0.0156645]
[1641600378153,0.9172,3189.2,3188.3,0.6128]
[1641600378350,4.13593394,3188.8,3188.3,1.52366127]
[1641600378551,4.13593394,3188.8,3188.4,5.017876]
[1641600378749,1.00125699,3189.0,3188.4,5.934576]
[1641600378952,0.87645699,3189.0,3188.4,4.0467]
[1641600379152,0.4519,3188.9,3188.5,5.84356335]
[1641600379553,0.39625699,3189.0,3188.7,0.01565886]
[1641600379753,6.402666,3189.3,3188.9,4.00958]
[1641600379953,4.210266,3189.3,3188.9,4.00958]
[1641600380153,2.13945731,3189.4,3188.6,3.13]
[1641600380352,0.683488,3189.3,3188.6,3.13]
[1641600380551,2.00479,3189.9,3188.6,3.13]
[1641600380751,2.00479,3189.9,3188.6,0.4763832]
[1641600380952,2.66419,3189.9,3188.5,0.82584535]
[1641600381456,2.59719,3189.9,3188.5,0.82584535]
[1641600381652,2.44729,3189.9,3188.5,0.82584535]
[1641600381856,33.5737,3190.0,3189.0,3.13417926]
[1641600382053,6.57626705,3189.2,3189.0,3.13417926]
[1641600382254,0.640787,3189.1,3187.6,1.46608451]
[1641600382754,0.640787,3189.1,3187.7,1.52081463]
[1641600382956,0.224787,3189.1,3187.7,7.31288363]
[1641600383153,6.44705405,3189.2,3187.7,7.31288363]
[1641600383354,6.44705405,3189.2,3187.7,2.12559327]
[1641600383554,6.44705405,3189.2,3187.7,2.94679327]
[1641600383754,6.44705405,3189.2,3187.7,0.8212]
[1641600383954,2.00479,3188.3,3187.7,0.8212]
[1641600384155,4.93783962,3187.9,3187.8,0.640787]
[1641600384555,4.93783962,3187.9,3187.8,5.659607]
[1641600384957,0.76542637,3187.9,3187.8,5.659607]
[1641600385156,2.00479,3188.3,3187.8,5.659607]
[1641600385358,2.00479,3188.3,3187.8,1.21017187]
[1641600385557,2.00479,3188.3,3187.9,0.14143113]
[1641600386157,2.00479,3188.3,3188.1,0.01566502]
[1641600386358,2.00479,3188.3,3188.2,1.56492142]
[1641600386757,2.00479,3188.3,3188.2,1.58058565]
[1641600387158,5.81875405,3189.2,3188.2,1.58058565]
[1641600387361,5.33995405,3189.2,3188.2,2.46518565]
[1641600387558,5.33995405,3188.7,3188.2,2.95926844]
[1641600387958,5.33995405,3188.7,3188.6,2.00479]
[1641600388158,2.00479,3189.6,3188.6,2.00479]
[1641600388360,2.00479,3189.6,3188.7,1.4793505]
[1641600388559,2.00479,3189.6,3189.0,0.01566016]
[1641600388761,2.00479,3189.6,3189.0,0.8128]
[1641600388960,2.00479,3189.6,3189.1,5.03243387]
[1641600389264,1.92809,3189.6,3189.1,5.03243387]
[1641600389463,1.92809,3189.6,3189.2,1.11977709]
[1641600389862,1.92809,3189.6,3189.3,5.016617]
[1641600390960,6.59261066,3189.4,3189.3,1.17294235]
[1641600391461,6.24641066,3189.4,3189.3,1.17294235]
[1641600391662,8.17450066,3189.6,3189.3,1.17294235]
[1641600392563,6.59450066,3189.6,3189.3,1.17294235]
[1641600392865,0.34809,3189.6,3189.5,0.01565818]
[1641600393062,0.34809,3189.6,3189.2,0.1003964]
[1641600393262,1.72888,3189.9,3189.5,5.016381]
[1641600393463,1.72888,3189.9,3189.4,5.016538]
[1641600393663,1.72888,3189.9,3189.3,5.016617]
[1641600393964,1.10308,3189.9,3189.4,2.00479]
[1641600395363,0.03,3190.1,3189.4,2.00479]
[1641600395764,0.03,3190.1,3189.8,0.01565658]
[1641600395965,0.03,3190.1,3190.0,2.00479]
[1641600396464,6.14810178,3190.2,3190.0,2.00479]
[1641600397266,1.5,3190.4,3189.9,1.28270266]
[1641600397466,4.210266,3190.6,3189.8,0.7938]
[1641600397667,0.264788,3190.5,3189.8,0.7938]
[1641600397966,0.264788,3190.5,3189.1,2.00479]
[1641600397967,2.00479,3190.2,3189.1,2.00479]
[1641600398167,2.00479,3190.2,3189.3,0.01565874]
[1641600398367,2.00479,3190.2,3188.9,5.13112789]
[1641600398568,1.5,3189.9,3188.8,0.01566149]
[1641600398969,1.5,3189.4,3188.2,34.358]
[1641600399170,2.135,3189.4,3187.4,37.3875]
[1641600399670,0.635,3189.4,3187.9,9.21198705]
[1641600399872,6.40304532,3189.4,3187.9,9.21198705]
[1641600400070,2.00479,3188.1,3188.0,0.01566524]
[1641600400471,4.94403884,3188.9,3187.9,1.06411105]
[1641600400669,4.94403884,3188.9,3187.9,1.78731105]
[1641600400870,4.94403884,3188.9,3188.1,0.01566463]
[1641600401071,0.640787,3188.8,3188.1,0.01566463]
[1641600401269,4.94403884,3188.5,3188.1,0.01566463]
[1641600402173,3.50554532,3189.4,3188.4,1.51566301]
[1641600402373,1.98249711,3189.8,3188.3,4.0]
[1641600402571,0.40307031,3190.0,3189.7,1.5]
[1641600402773,3.52833631,3190.6,3189.7,6.3191]
[1641600402971,2.96633631,3190.6,3189.9,1.5]
[1641600403171,2.96633631,3190.6,3190.5,0.01565144]
[1641600403370,0.03,3191.0,3190.5,0.66085144]
[1641600403572,0.03,3191.0,3190.5,5.67566044]
[1641600403972,0.03,3191.0,3190.7,2.00479]
[1641600404171,0.03,3191.0,3190.8,0.01565139]
[1641600404372,0.03,3191.0,3190.8,5.02998839]
[1641600404778,0.60859,3191.4,3190.8,5.02998839]
[1641600404977,1.93988,3191.8,3190.8,5.02998839]
[1641600405177,5.77226165,3191.7,3190.8,5.014337]
[1641600405377,5.77226165,3191.7,3190.8,2.33375752]
[1641600406278,5.77226165,3191.7,3190.8,2.34940891]
[1641600406480,1.93988,3191.8,3190.8,2.34940893]
[1641600406677,4.95089456,3191.6,3190.8,2.34940893]
[1641600407078,4.95089456,3191.6,3190.8,2.33375752]
[1641600407879,1.93988,3191.8,3190.8,2.33375752]
[1641600408577,2.97548,3191.8,3190.8,2.33375752]
[1641600409179,1.47548,3191.8,3190.8,2.33375752]
[1641600409983,2.00479,3190.9,3190.8,2.33375752]
[1641600411483,1.93049,3190.9,3190.8,2.33375752]
[1641600414284,1.41679,3190.9,3190.8,2.33375752]
[1641600414889,1.37749,3190.9,3190.8,2.33375752]
[1641600415489,1.47548,3191.8,3190.8,2.33375752]
[1641600415988,1.47548,3191.8,3191.0,2.00479]
[1641600416190,0.640787,3191.7,3191.0,2.00479]
[1641600416390,0.640787,3191.7,3191.1,5.013473]
[1641600416589,0.905575,3191.7,3191.1,5.013473]
[1641600417891,0.822375,3191.7,3191.1,5.013473]
[1641600418691,0.557587,3191.7,3191.1,5.096674]
[1641600418991,1.407267,3191.8,3191.1,5.096674]
[1641600419193,0.640787,3191.6,3191.1,5.013473]
[1641600419491,1.5,3191.5,3191.1,5.013473]
[1641600419692,0.264788,3191.4,3190.7,1.13772067]
[1641600420106,2.00479,3191.2,3190.7,1.13772067]
[1641600420293,0.264788,3191.1,3190.7,1.13772067]
[1641600422298,2.00479,3191.2,3190.7,1.13772067]
[1641600422498,0.03,3191.9,3191.1,0.0156485]
[1641600422701,66.1405,3192.4,3191.6,0.01564776]
[1641600422901,0.905575,3192.3,3191.6,0.78964776]
[1641600423303,0.905575,3192.3,3191.7,1.06636777]
[1641600423504,0.264788,3192.2,3191.7,1.06636777]
[1641600424102,2.269578,3192.2,3191.7,1.33115577]
[1641600424302,2.00479,3192.2,3191.7,1.97194277]
[1641600424502,2.00479,3192.5,3191.7,1.97194277]
[1641600424704,2.00479,3192.5,3191.7,2.57434277]
[1641600425304,1.947775,3192.4,3191.7,2.57434277]
[1641600425502,2.212563,3192.4,3191.7,2.28607883]
[1641600425903,0.712563,3192.4,3191.7,1.68367883]
[1641600426502,2.212563,3192.4,3191.7,1.68367883]
[1641600426703,0.712563,3192.4,3191.7,1.68367883]
[1641600427104,0.447775,3192.4,3191.7,1.68367883]
[1641600427303,2.00479,3192.5,3191.7,1.68367883]
[1641600427906,0.447775,3192.4,3191.7,1.68367883]
[1641600429806,0.447775,3192.4,3191.7,1.19774566]
[1641600430911,2.00479,3192.5,3191.7,1.19774566]
[1641600431109,6.95568456,3192.8,3191.7,1.19774566]
[1641600431312,6.95568456,3192.8,3192.3,0.01564421]
[1641600431609,6.95568456,3192.8,3192.4,5.917242]
[1641600432010,6.19368456,3192.8,3192.5,1.35313789]
[1641600432210,6.19368456,3192.8,3192.6,0.264788]
[1641600432411,6.19368456,3192.8,3192.6,5.276298]
[1641600432713,6.19368456,3192.8,3192.6,6.62942264]
[1641600432911,4.95089456,3192.8,3192.6,6.64506551]
[1641600433111,4.85489456,3192.8,3192.7,0.87119304]
[1641600433313,4.55589456,3193.2,3192.7,0.87119304]
[1641600433511,3.49959456,3193.2,3192.8,0.264788]
[1641600433812,2.25609456,3193.2,3192.9,5.010961]
[1641600434012,2.25609456,3193.2,3193.0,0.264788]
[1641600434213,2.25609456,3193.2,3193.1,4.650367]
[1641600434414,2.25609456,3193.2,3193.1,9.661171]
[1641600434614,5.77226165,3193.7,3193.1,9.661171]
[1641600434814,5.77226165,3193.7,3193.2,0.264788]
[1641600435014,33.1653,3194.1,3193.2,0.264788]
[1641600435015,5.08786165,3193.9,3193.2,1.19249265]
[1641600435215,5.08786165,3193.9,3193.3,5.010255]
[1641600435619,5.08786165,3193.9,3193.2,5.010176]
[1641600435820,5.08786165,3193.9,3193.4,5.01002]
[1641600436018,6.59687045,3194.4,3193.9,1.35254885]
[1641600436218,6.59687045,3194.4,3194.0,0.640787]
[1641600436417,33.7955,3194.5,3194.0,0.640787]
[1641600436617,33.7955,3194.5,3194.1,1.3524777]
[1641600436818,2.00479,3194.6,3194.1,1.3524777]
[1641600437018,2.00479,3194.6,3194.2,1.02708325]
[1641600437220,6.59687045,3194.9,3194.2,1.02708325]
[1641600437420,6.49787045,3194.9,3194.3,5.008765]
[1641600437620,5.76296309,3194.7,3194.6,0.01563213]
[1641600437920,5.76296309,3194.7,3194.6,0.2037646]
[1641600438120,5.76296309,3194.7,3194.6,9.2217176]
[1641600438627,5.76296309,3194.7,3194.6,4.2133446]
[1641600439028,5.29306309,3194.7,3194.6,4.2133446]
[1641600439327,5.29306309,3195.4,3194.6,4.2133446]
[1641600439527,0.264788,3195.3,3194.1,1.36811286]
[1641600439727,0.264788,3195.3,3194.6,0.6647]
[1641600439928,0.264788,3195.3,3194.7,0.640787]
[1641600440128,2.00479,3195.1,3194.7,0.640787]
[1641600442129,2.00479,3195.1,3194.7,1.89964783]
[1641600442530,2.03479,3195.6,3194.7,1.89964783]
[1641600442929,2.03479,3195.6,3194.8,5.007981]
[1641600443129,1.85778999,3195.6,3194.8,5.007981]
[1641600443330,1.85778999,3195.6,3195.0,0.01563113]
[1641600443529,0.82878999,3195.6,3195.0,0.01563113]
[1641600443731,4.24086309,3196.2,3195.1,5.666754]
[1641600443930,0.03,3196.5,3195.5,0.01562698]
[1641600444130,0.03,3196.5,3196.4,2.00479]
[1641600444331,0.03,3196.5,3196.4,2.70899]
[1641600445231,0.03,3196.5,3196.4,4.14550337]
[1641600445833,0.03,3196.5,3196.4,3.03148353]
[1641600446834,0.03,3196.5,3196.4,8.03703653]
[1641600447038,1.54029,3197.2,3196.4,8.03703653]
[1641600448235,0.90229,3197.2,3196.4,8.03703653]
[1641600448439,37.7931619,3198.2,3196.4,8.03703653]
[1641600448838,5.7491619,3198.2,3196.4,8.03703653]
[1641600449235,5.7491619,3198.2,3196.4,12.03703653]
[1641600449437,5.7491619,3198.2,3197.1,0.01562131]
[1641600449637,0.03,3198.4,3197.1,0.85722131]
[1641600449638,1.5,3198.1,3197.1,0.85722131]
[1641600449837,1.5,3197.8,3197.2,5.003674]
[1641600450036,0.712563,3197.7,3197.2,5.003674]
[1641600450239,2.00479,3198.0,3197.3,2.645577]
[1641600450636,2.00479,3198.0,3197.4,5.003518]
[1641600451638,2.00479,3198.0,3197.4,3.35251034]
[1641600452638,2.00479,3198.0,3197.3,2.00479]
[1641600452639,1.5,3197.8,3197.3,2.00479]
[1641600452838,3.089265,3198.0,3197.3,2.00479]
[1641600453239,0.264788,3197.9,3197.3,2.00479]
[1641600457641,0.264788,3197.9,3197.4,0.98226566]
[1641600457843,0.264788,3197.9,3196.6,0.01562356]
[1641600457844,1.5,3197.6,3196.6,0.01562356]
[1641600458044,1.5,3196.9,3196.4,0.4703]
[1641600458244,2.00479,3196.6,3196.4,0.4703]
[1641600459543,0.264788,3196.5,3196.4,0.4703]
[1641600459943,0.264788,3196.5,3196.4,0.35919131]
[1641600461845,2.00479,3196.6,3196.4,0.35919131]
[1641600464048,1.37979,3196.6,3196.4,0.95559131]
[1641600464248,2.00479,3197.3,3196.5,2.00479]
[1641600464546,2.00479,3197.3,3196.5,2.02041295]
[1641600464746,2.00479,3197.3,3196.6,5.004848]
[1641600465348,2.00479,3197.3,3196.6,4.70880987]
[1641600465651,0.447775,3197.2,3196.6,4.70880987]
[1641600465847,0.712563,3197.2,3196.6,4.70880987]
[1641600466650,0.712563,3197.2,3196.5,4.02520295]
[1641600466847,0.264788,3197.2,3196.5,4.02520295]
[1641600467048,2.00479,3197.3,3196.5,4.02520295]
[1641600467250,2.00479,3197.3,3196.6,5.004926]
[1641600467449,0.264788,3197.2,3196.6,5.004926]
[1641600467748,0.447775,3197.1,3196.5,4.02520295]
[1641600468249,0.264788,3197.0,3196.5,4.02520295]
[1641600468850,0.264788,3197.0,3196.5,4.00958]
[1641600469048,1.062588,3197.0,3196.5,4.00958]
[1641600471051,1.062588,3197.0,3196.5,3.38693371]
[1641600473857,1.062588,3197.0,3196.5,3.40255773]
[1641600474358,2.00479,3197.3,3196.5,3.40255773]
[1641600475059,1.56389,3197.3,3196.5,3.38693371]
[1641600476161,1.56389,3197.3,3196.5,3.01117223]
[1641600477263,1.56389,3197.3,3196.6,5.004848]
[1641600477462,1.56389,3197.3,3196.6,5.876848]
[1641600477865,1.5,3197.0,3196.6,5.876848]
[1641600478065,1.5,3197.0,3196.4,0.35919131]
[1641600478066,2.4297,3197.0,3196.4,0.35919131]
[1641600478464,2.00479,3196.5,3196.4,0.35919131]
[1641600479065,2.269578,3196.5,3196.4,0.35919131]
[1641600480166,2.717353,3196.5,3196.4,0.35919131]
[1641600481067,2.717353,3196.5,3195.3,32.41245306]
[1641600481269,2.717353,3196.5,3195.2,2.00479]
[1641600481468,2.717353,3196.5,3195.2,2.80564455]
[1641600481668,2.717353,3196.5,3195.3,5.006492]
[1641600481869,2.717353,3196.5,3195.2,2.48432505]
[1641600482074,2.717353,3196.5,3195.5,0.01562893]
[1641600482370,2.00479,3195.9,3195.5,0.01562893]
[1641600482569,2.00479,3195.9,3195.6,0.640787]
[1641600482768,32.90128037,3196.8,3195.6,0.640787]
[1641600482769,0.99898037,3196.8,3195.8,0.01562693]
[1641600482970,0.99898037,3196.8,3196.6,0.01562344]
[1641600483270,0.99898037,3196.8,3196.7,5.005161]
[1641600483869,0.99898037,3196.8,3196.7,6.37778854]
[1641600484068,0.63698037,3196.8,3196.7,6.37778854]
[1641600484673,0.712563,3196.9,3196.7,6.37778854]
[1641600484869,0.712563,3196.9,3196.7,4.24823071]
[1641600485069,0.712563,3196.9,3196.7,1.37262754]
[1641600485671,1.5,3196.8,3194.6,32.3649]
[1641600485871,1.5,3196.4,3195.0,0.01563128]
[1641600486370,2.00479,3195.8,3195.1,7.011517]
[1641600486570,0.712563,3195.7,3195.1,7.011517]
[1641600486769,0.712563,3195.7,3195.2,1.36953738]
[1641600486770,0.447775,3195.7,3195.2,1.36953738]
[1641600486971,2.90499,3195.8,3195.2,1.36953738]
[1641600487181,2.90499,3195.8,3195.4,0.0156294]
[1641600487573,2.90499,3195.8,3195.5,5.006884]
[1641600487771,2.90499,3195.8,3195.2,1.36953738]
[1641600488573,2.90499,3195.8,3195.5,0.01562905]
[1641600488774,0.447775,3195.7,3194.8,1.18668003]
[1641600489375,0.447775,3195.7,3194.9,5.007432]
[1641600489574,0.447775,3195.7,3195.0,0.193013]
[1641600489777,0.712563,3195.7,3195.4,0.01562927]
[1641600490577,2.717353,3195.7,3195.5,0.79944848]
[1641600491775,1.5,3195.6,3195.5,4.848e-05]
[1641600492174,1.5,3195.6,3194.8,0.46]
[1641600492376,1.5,3195.4,3194.8,0.46]
[1641600492575,2.00479,3194.9,3194.8,0.46]
[1641600492774,3.546877,3194.9,3194.8,0.46]
[1641600492974,3.811665,3194.9,3194.8,0.46]
[1641600494578,3.811665,3194.9,3194.8,1.50440885]